bitfinex-derivatives/quotes_BTCF0:USTF0_20251030
["timestamp","ask_amount","ask_price","bid_price","bid_amount"]
[1761808975913,0.36971,111580.0,111570.0,0.08727559]
[1761808976114,0.53886665,111580.0,111570.0,0.02560816]
[1761808976309,0.36971,111580.0,111570.0,0.08727559]
[1761808976511,0.36971,111580.0,111570.0,0.24643224]
[1761808977312,0.36971,111580.0,111570.0,0.08727559]
[1761808977514,0.36971,111580.0,111570.0,0.17690229]
[1761808977716,0.88966665,111580.0,111570.0,0.04921559]
[1761808978310,0.36971,111580.0,111570.0,0.04921559]
[1761808978512,0.36971,111580.0,111570.0,0.06824559]
[1761808978818,0.36967,111580.0,111570.0,0.08727559]
[1761808979117,0.73047,111580.0,111570.0,0.08727559]
[1761808979919,0.73047,111580.0,111570.0,0.06824559]
[1761808980228,0.73047,111580.0,111570.0,0.04921559]
[1761808980719,0.88962665,111580.0,111570.0,0.04921559]
[1761808981223,0.73047,111580.0,111570.0,0.04921559]
[1761808981719,0.88962665,111580.0,111570.0,0.04921559]
[1761808984527,0.88962665,111580.0,111570.0,0.02560816]
[1761808987316,0.88962665,111580.0,111570.0,0.0256374]
[1761808987823,0.91962665,111580.0,111570.0,0.0256374]
[1761808995428,0.91962665,111580.0,111570.0,0.0216374]
[1761808995744,0.92162665,111580.0,111570.0,0.0216374]
[1761808996128,0.04357,111570.0,111560.0,0.0236449]
[1761808996330,0.7764133,111570.0,111560.0,0.02161251]
[1761808996528,0.7790933,111570.0,111560.0,0.02161251]
[1761808996843,0.7764133,111570.0,111560.0,0.02161251]
[1761808997043,0.7790933,111570.0,111560.0,0.02161251]
[1761808997240,0.0573,111550.0,111540.0,0.05518159]
[1761808997435,0.89077665,111550.0,111540.0,0.05518159]
[1761808998546,0.89077665,111550.0,111540.0,0.07710159]
[1761808998734,0.89077665,111550.0,111540.0,0.05518159]
[1761808999344,0.89277665,111550.0,111540.0,0.05518159]
[1761808999545,0.90277665,111550.0,111540.0,0.0657382]
[1761809000146,0.90277665,111550.0,111540.0,0.1088982]
[1761809001847,0.74362,111550.0,111540.0,0.0657382]
[1761809002047,0.90277665,111550.0,111540.0,0.0657382]
[1761809002344,0.90277665,111550.0,111540.0,0.03420151]
[1761809003850,0.90277665,111550.0,111540.0,0.01055661]
[1761809004044,0.0573,111540.0,111530.0,0.49969308]
[1761809005346,0.0573,111540.0,111530.0,0.42766948]
[1761809005853,0.0573,111540.0,111530.0,0.42866948]
[1761809006852,0.0573,111540.0,111530.0,0.07805857]
[1761809007256,0.21645665,111540.0,111530.0,0.07805857]
[1761809007644,0.21645665,111540.0,111530.0,0.03489857]
[1761809007854,0.0573,111540.0,111530.0,0.03489857]
[1761809008049,0.21645665,111540.0,111530.0,0.03489857]
[1761809008554,0.21645665,111540.0,111530.0,0.07805857]
[1761809008854,0.58725665,111540.0,111530.0,0.01125367]
[1761809010457,0.58725665,111540.0,111530.0,0.05441367]
[1761809011355,0.58725665,111540.0,111530.0,0.01125367]
[1761809011559,0.58725665,111540.0,111530.0,0.00106458]
[1761809011758,0.7464133,111540.0,111530.0,0.00106458]
[1761809012054,0.58725665,111540.0,111530.0,0.00106458]
[1761809012459,1.3464133,111540.0,111530.0,0.00106458]
[1761809012655,1.18725665,111540.0,111530.0,0.00106458]
[1761809013460,1.3464133,111540.0,111530.0,0.00106458]
[1761809013661,1.18725665,111540.0,111530.0,0.00106458]
[1761809014154,1.3464133,111540.0,111530.0,0.00106458]
[1761809014558,1.3464133,111540.0,111530.0,6.458e-05]
[1761809014559,1.3474133,111540.0,111530.0,6.458e-05]
[1761809014957,1.3504133,111540.0,111530.0,6.458e-05]
[1761809015447,1.35069334,111540.0,111530.0,6.458e-05]
[1761809016152,0.0568,111520.0,111510.0,1.56551984]
[1761809016362,0.52949667,111520.0,111510.0,1.56551984]
[1761809017057,0.52956125,111520.0,111510.0,1.56551984]
[1761809017255,0.52956125,111520.0,111510.0,1.56651984]
[1761809017959,0.37026458,111520.0,111510.0,1.56651984]
[1761809018161,0.52956125,111520.0,111510.0,1.56651984]
[1761809019151,0.52956125,111520.0,111510.0,1.51133825]
[1761809019557,0.53956125,111520.0,111510.0,1.51133825]
[1761809020671,0.53956125,111520.0,111510.0,1.67063492]
[1761809021459,1.05965792,111520.0,111510.0,1.51133825]
[1761809021658,1.05965792,111520.0,111510.0,0.001]
[1761809022164,0.74625792,111520.0,111510.0,0.001]
[1761809022348,1.05961792,111520.0,111510.0,0.001]
[1761809023356,0.05818,111500.0,111490.0,0.0685049]
[1761809023566,0.53083667,111500.0,111490.0,0.22780157]
[1761809024164,0.21747667,111500.0,111490.0,0.22780157]
[1761809024365,0.53083667,111500.0,111490.0,0.22780157]
[1761809024566,0.53283667,111500.0,111490.0,0.22780157]
[1761809024762,0.53283667,111500.0,111490.0,0.0685049]
[1761809025262,0.53283667,111500.0,111490.0,0.07845762]
[1761809026267,0.73213334,111500.0,111490.0,0.03359762]
[1761809026462,1.09299792,111500.0,111490.0,0.00995272]
[1761809026769,0.05818,111490.0,111480.0,0.0685049]
[1761809027066,0.57827667,111490.0,111480.0,0.07878173]
[1761809028068,0.57827667,111490.0,111480.0,0.05778173]
[1761809028269,0.57827667,111490.0,111480.0,0.07978173]
[1761809029755,0.57827667,111490.0,111480.0,0.2390784]
[1761809030164,0.57827667,111490.0,111480.0,0.07978173]
[1761809031471,0.41898,111490.0,111480.0,0.07978173]
[1761809031662,0.57827667,111490.0,111480.0,0.07978173]
[1761809031962,0.89159667,111490.0,111480.0,0.07978173]
[1761809032162,0.89159667,111490.0,111480.0,0.2390784]
[1761809032969,0.89159667,111490.0,111480.0,0.07978173]
[1761809033161,0.89159667,111490.0,111480.0,0.03492173]
[1761809033866,0.89159667,111490.0,111480.0,0.05778173]
[1761809034070,0.89159667,111490.0,111470.0,0.2056808]
[1761809034270,0.21747667,111480.0,111470.0,0.2413008]
[1761809035172,0.22747667,111480.0,111470.0,0.20482798]
[1761809035472,0.22747667,111480.0,111470.0,0.04553131]
[1761809035660,0.22747667,111480.0,111470.0,0.20682798]
[1761809035865,0.21747667,111480.0,111470.0,0.20682798]
[1761809036067,0.05818,111480.0,111470.0,0.20682798]
[1761809036376,0.05818,111480.0,111470.0,0.20482798]
[1761809036579,0.05818,111480.0,111470.0,0.2789908]
[1761809036777,0.05818,111480.0,111470.0,0.2809908]
[1761809036966,0.21747667,111480.0,111470.0,0.2809908]
[1761809037361,0.21747667,111480.0,111470.0,0.2789908]
[1761809037576,0.21747667,111480.0,111470.0,0.2809908]
[1761809037782,0.05818,111480.0,111470.0,0.731498]
[1761809037977,0.35854,111480.0,111470.0,0.734178]
[1761809038168,0.37146,111480.0,111470.0,0.734178]
[1761809038368,0.37146,111480.0,111470.0,0.57220133]
[1761809038571,0.37146,111480.0,111470.0,0.731498]
[1761809040083,0.05818,111480.0,111470.0,0.731498]
[1761809040485,0.05818,111480.0,111470.0,0.2809908]
[1761809040682,0.21747667,111480.0,111470.0,0.2809908]
[1761809040886,0.05818,111480.0,111470.0,0.2809908]
[1761809041677,0.21747667,111480.0,111470.0,0.2809908]
[1761809042083,0.21747667,111480.0,111470.0,0.12169413]
[1761809042285,0.21747667,111480.0,111470.0,0.2809908]
[1761809042790,0.37677334,111480.0,111470.0,0.01391131]
[1761809042976,0.77763792,111480.0,111470.0,0.01391131]
[1761809045597,0.77763792,111480.0,111470.0,0.004]
[1761809047086,0.05583,111470.0,111460.0,9.44e-05]
[1761809047399,0.94916667,111470.0,111460.0,0.0101764]
[1761809047785,0.63592667,111470.0,111460.0,0.0457964]
[1761809047981,0.94916667,111470.0,111460.0,0.0457964]
[1761809048181,0.94916667,111470.0,111460.0,0.0477964]
[1761809048792,0.94916667,111470.0,111460.0,0.0299864]
[1761809048989,0.94916667,111470.0,111460.0,0.0121764]
[1761809049494,0.94916667,111470.0,111460.0,0.0477964]
[1761809050289,0.95016667,111470.0,111460.0,0.0467964]
[1761809050490,0.95016667,111470.0,111460.0,0.0111764]
[1761809050785,0.37007,111470.0,111460.0,0.20609307]
[1761809051491,0.52936667,111470.0,111460.0,0.20609307]
[1761809052289,0.37007,111470.0,111460.0,0.0467964]
[1761809052593,0.89016667,111470.0,111460.0,0.0467964]
[1761809052988,0.90016667,111470.0,111460.0,0.0467964]
[1761809053184,0.90016667,111470.0,111460.0,0.0111764]
[1761809053493,1.05946334,111470.0,111460.0,0.0010944]
[1761809053890,0.90016667,111470.0,111460.0,0.0010944]
[1761809060094,0.58692667,111470.0,111460.0,0.0010944]
[1761809060294,0.42763,111470.0,111460.0,0.24336182]
[1761809060494,0.05683,111470.0,111460.0,1.36345849]
[1761809060695,0.02205,111470.0,111460.0,0.72531774]
[1761809060895,0.044,111470.0,111460.0,0.71878774]
[1761809061098,0.05738,111470.0,111460.0,0.71610774]
[1761809061397,0.05738,111470.0,111460.0,0.80582294]
[1761809061990,0.05738,111470.0,111460.0,0.71610774]
[1761809062300,0.05738,111470.0,111460.0,0.55681107]
[1761809062689,0.21667667,111470.0,111460.0,0.08405744]
[1761809062895,0.21667667,111470.0,111460.0,0.24335411]
[1761809063099,0.21667667,111470.0,111460.0,0.08405744]
[1761809063305,0.21667667,111470.0,111460.0,0.24335411]
[1761809063792,0.21667667,111470.0,111460.0,0.08405744]
[1761809065000,0.02328,111470.0,111460.0,1.31610774]
[1761809065198,0.02328,111470.0,111460.0,0.80582314]
[1761809065400,0.02328,111470.0,111460.0,0.80850314]
[1761809065401,0.04523,111470.0,111460.0,0.80850314]
[1761809065597,0.05861,111470.0,111460.0,0.80850314]
[1761809065799,0.05861,111470.0,111460.0,0.80582314]
[1761809066301,0.05861,111470.0,111460.0,0.3975144]
[1761809066499,0.05861,111470.0,111460.0,0.55681107]
[1761809066704,0.05861,111470.0,111460.0,0.64652637]
[1761809066908,0.05861,111470.0,111460.0,0.80582304]
[1761809067997,0.05861,111470.0,111460.0,0.4872297]
[1761809068203,0.05861,111470.0,111460.0,0.64652637]
[1761809070204,0.05861,111470.0,111460.0,1.24652637]
[1761809070600,0.21790667,111470.0,111460.0,1.15681107]
[1761809070993,0.21790667,111470.0,111460.0,0.55681107]
[1761809071190,0.05861,111470.0,111460.0,0.55681107]
[1761809072205,0.05861,111470.0,111460.0,0.64652647]
[1761809072505,0.05861,111470.0,111460.0,0.4872298]
[1761809072705,0.05861,111470.0,111460.0,0.64652647]
[1761809072899,0.05861,111470.0,111460.0,0.3975144]
[1761809073091,0.05861,111470.0,111460.0,0.55681107]
[1761809074306,0.21790667,111470.0,111460.0,0.55681107]
[1761809074604,0.21790667,111470.0,111460.0,0.60418134]
[1761809074804,0.21790667,111470.0,111460.0,0.08408467]
[1761809075505,0.05861,111470.0,111460.0,0.08408467]
[1761809076612,0.36086458,111480.0,111460.0,0.34720113]
[1761809076804,0.05634,111500.0,111490.0,0.03562]
[1761809076998,0.05634,111500.0,111490.0,0.06718252]
[1761809077199,0.05634,111500.0,111490.0,0.42798252]
[1761809077494,0.05634,111500.0,111490.0,0.51767362]
[1761809077695,0.05634,111500.0,111490.0,0.42798252]
[1761809077903,0.06234,111500.0,111490.0,0.51867362]
[1761809078403,0.58258126,111500.0,111490.0,0.05037252]
[1761809078605,0.59258126,111500.0,111490.0,0.001]
[1761809079009,0.05716,111490.0,111480.0,0.06718252]
[1761809079210,0.05716,111490.0,111480.0,0.03562]
[1761809080905,0.05716,111480.0,111470.0,0.42798252]
[1761809081107,0.05716,111480.0,111470.0,0.41017252]
[1761809081308,0.05716,111480.0,111470.0,0.42798252]
[1761809082010,0.05816,111480.0,111470.0,0.42798252]
[1761809082201,0.05816,111480.0,111470.0,0.42898252]
[1761809082410,0.05816,111480.0,111470.0,0.68081108]
[1761809082812,0.05816,111480.0,111470.0,0.74822022]
[1761809083116,0.05816,111480.0,111470.0,0.74422022]
[1761809083414,0.05816,111480.0,111470.0,0.51468982]
[1761809084308,0.05816,111480.0,111470.0,0.67413108]
[1761809084815,0.05816,111480.0,111470.0,0.42498252]
[1761809085716,0.05816,111480.0,111470.0,0.51468972]
[1761809086712,0.05816,111480.0,111470.0,0.06818252]
[1761809087317,0.05816,111480.0,111470.0,0.13837929]
[1761809087517,0.05816,111480.0,111470.0,0.06818252]
[1761809088225,0.05816,111480.0,111470.0,0.03662]
[1761809090109,0.41896,111480.0,111470.0,0.001]
[1761809090614,0.57840126,111480.0,111470.0,0.001]
[1761809090811,0.41896,111480.0,111470.0,0.001]
[1761809091012,0.05816,111480.0,111470.0,0.19606126]
[1761809091414,0.05816,111480.0,111470.0,0.22762378]
[1761809092201,0.05816,111480.0,111470.0,0.31733098]
[1761809092406,0.05816,111480.0,111470.0,0.67813098]
[1761809092704,0.05816,111480.0,111470.0,0.58842378]
[1761809093516,0.05816,111480.0,111470.0,0.42898252]
[1761809094518,0.05816,111480.0,111470.0,0.58842378]
[1761809094718,0.05816,111480.0,111470.0,0.42898252]
[1761809096221,0.05816,111480.0,111470.0,0.50187723]
[1761809096511,0.05816,111480.0,111470.0,0.66131849]
[1761809097918,0.05816,111480.0,111470.0,0.75102579]
[1761809099619,0.05634,111500.0,111490.0,0.03562]
[1761809099819,0.05634,111500.0,111490.0,0.19506126]
[1761809100223,0.05634,111500.0,111490.0,0.03562]
[1761809101321,0.05834,111500.0,111490.0,0.03562]
[1761809101623,0.05916,111500.0,111490.0,0.30842094]
[1761809102431,0.05916,111500.0,111490.0,0.66922094]
[1761809103727,0.002,111500.0,111490.0,0.66922094]
[1761809103915,0.002,111500.0,111490.0,0.67190094]
[1761809104114,0.08134293,111520.0,111510.0,0.03562]
[1761809106713,0.27403251,111520.0,111510.0,0.03562]
[1761809106922,0.61064958,111520.0,111510.0,0.01781]
[1761809107225,0.64064958,111520.0,111510.0,0.04703865]
[1761809107627,0.64064958,111520.0,111510.0,0.01141865]
[1761809107822,0.64064958,111520.0,111490.0,0.63359744]
[1761809107823,0.0591,111500.0,111490.0,0.66921744]
[1761809108028,0.0591,111500.0,111490.0,0.4861076]
[1761809108326,0.0591,111500.0,111490.0,0.39642]
[1761809108628,0.21854126,111500.0,111490.0,0.03562]
[1761809108822,0.0591,111500.0,111490.0,0.03562]
[1761809109334,0.0591,111500.0,111490.0,0.03862]
[1761809110139,0.0591,111500.0,111490.0,0.03962]
[1761809110327,0.0591,111500.0,111490.0,0.03662]
[1761809110523,0.0591,111500.0,111490.0,0.04799961]
[1761809110742,0.0591,111500.0,111490.0,0.04699961]
[1761809112726,0.4299,111500.0,111490.0,0.02918961]
[1761809112919,0.4299,111500.0,111490.0,0.01137961]
[1761809113118,0.4299,111500.0,111480.0,0.05928858]
[1761809113119,0.0591,111490.0,111480.0,0.05928858]
[1761809113314,0.0591,111490.0,111480.0,0.43160087]
[1761809114432,0.41835,111500.0,111490.0,0.03562]
[1761809115125,0.05761,111490.0,111480.0,0.43160087]
[1761809115729,0.21705126,111490.0,111480.0,0.43260087]
[1761809115916,0.05761,111490.0,111480.0,0.43260087]
[1761809116321,0.05761,111490.0,111480.0,0.43160087]
[1761809116723,0.57785126,111490.0,111480.0,0.05299087]
[1761809116924,0.58785126,111490.0,111480.0,0.01151229]
[1761809117120,0.04368,111480.0,111470.0,0.52454581]
[1761809117325,0.57785126,111480.0,111470.0,0.05928858]
[1761809117532,0.57785126,111480.0,111470.0,0.04147858]
[1761809117736,0.57785126,111480.0,111470.0,0.02366858]
[1761809118031,0.57785126,111480.0,111470.0,0.04147858]
[1761809118238,0.41841,111480.0,111470.0,0.07058271]
[1761809118625,0.41841,111480.0,111470.0,0.07158271]
[1761809119734,0.03592,111490.0,111480.0,0.03562]
[1761809120041,0.05761,111490.0,111480.0,0.42008858]
[1761809120339,0.05761,111490.0,111480.0,0.05928858]
[1761809121024,0.05761,111490.0,111480.0,0.42008858]
[1761809124642,0.05761,111490.0,111480.0,0.05928858]
[1761809129139,0.21705126,111490.0,111480.0,0.04147858]
[1761809129348,0.58785126,111490.0,111480.0,0.02366858]
[1761809129538,0.05721,111480.0,111470.0,0.17488208]
[1761809129845,0.05721,111480.0,111470.0,0.1512135]
[1761809130941,0.21665126,111480.0,111470.0,0.07847665]
[1761809131246,0.05721,111480.0,111470.0,0.23102959]
[1761809131642,0.05721,111480.0,111470.0,0.07158833]
[1761809131849,0.41801,111480.0,111470.0,0.05377833]
[1761809132349,0.41801,111480.0,111470.0,0.07158833]
[1761809135350,0.21661394,111480.0,111470.0,0.23099227]
[1761809135651,0.05721,111480.0,111470.0,0.23099227]
[1761809136150,0.05721,111480.0,111470.0,0.59179227]
[1761809136349,0.05721,111480.0,111470.0,0.62335479]
[1761809138150,0.39596,111500.0,111490.0,0.03562]
[1761809138450,0.21629394,111500.0,111490.0,0.03562]
[1761809138647,0.58709394,111500.0,111490.0,0.01781]
[1761809138848,0.21629394,111500.0,111490.0,0.03562]
[1761809139049,0.57709394,111500.0,111490.0,0.03562]
[1761809139350,0.57809394,111500.0,111480.0,0.18309276]
[1761809139546,0.0566,111490.0,111480.0,0.57951276]
[1761809139746,0.0566,111490.0,111480.0,0.66921186]
[1761809139942,0.0566,111490.0,111480.0,0.57951276]
[1761809142754,0.21600394,111490.0,111480.0,0.21871276]
[1761809143052,0.0566,111490.0,111480.0,0.21871276]
[1761809143353,0.60680394,111490.0,111480.0,0.02368882]
[1761809144138,0.04302,111480.0,111470.0,0.24375941]
[1761809144342,0.21600394,111480.0,111470.0,0.10216547]
[1761809144543,0.21600394,111480.0,111470.0,0.06066665]
[1761809144752,0.21600394,111480.0,111470.0,0.23788059]
[1761809145048,0.0566,111480.0,111470.0,0.23788059]
[1761809145354,0.0566,111480.0,111470.0,0.59868059]
[1761809146841,0.0566,111480.0,111470.0,0.59968059]
[1761809147858,0.03487,111490.0,111480.0,0.01781]
[1761809148045,0.0566,111490.0,111480.0,0.42012841]
[1761809148855,0.0566,111490.0,111480.0,0.57953235]
[1761809149054,0.22600394,111490.0,111480.0,0.42012841]
[1761809149453,0.22600394,111490.0,111480.0,0.57953235]
[1761809149640,0.0666,111490.0,111480.0,0.57953235]
[1761809150854,1.17680394,111490.0,111480.0,0.02370841]
[1761809151153,0.04302,111480.0,111470.0,0.04151841]
[1761809151358,0.57680394,111480.0,111470.0,0.21873235]
[1761809151555,0.57680394,111480.0,111470.0,0.23075069]
[1761809151755,0.57680394,111480.0,111470.0,0.07134675]
[1761809152359,0.4174,111480.0,111470.0,0.07134675]
[1761809152549,0.57680394,111480.0,111470.0,0.07134675]
[1761809152962,0.57680394,111480.0,111470.0,0.07234675]
[1761809156458,0.57680394,111480.0,111470.0,0.04863834]
[1761809156965,0.21600394,111480.0,111470.0,0.07234675]
[1761809157266,0.57680394,111480.0,111470.0,0.07234675]
[1761809157767,0.4174,111480.0,111470.0,0.07234675]
[1761809157955,0.57680394,111480.0,111470.0,0.07234675]
[1761809158557,0.4174,111480.0,111470.0,0.07234675]
[1761809158761,0.57680394,111480.0,111470.0,0.07234675]
[1761809159463,0.77620788,111480.0,111470.0,0.001]
[1761809160971,0.93561182,111480.0,111470.0,0.001]
[1761809161366,0.77620788,111480.0,111470.0,0.001]
[1761809161770,1.01888788,111480.0,111470.0,0.001]
[1761809162562,1.01620788,111480.0,111470.0,0.001]
[1761809164171,0.84620788,111480.0,111470.0,0.001]
[1761809166071,1.44620788,111480.0,111470.0,0.001]
[1761809166869,0.05674,111470.0,111460.0,9.44e-05]
[1761809167172,0.77634788,111470.0,111460.0,9.44e-05]
[1761809167376,0.77634788,111470.0,111460.0,0.0357144]
[1761809167377,0.61694394,111470.0,111460.0,0.0357144]
[1761809167877,0.61694394,111470.0,111460.0,0.0179044]
[1761809168064,0.61694394,111470.0,111460.0,0.0189044]
[1761809168265,0.61694394,111470.0,111460.0,0.0010944]
[1761809168464,0.61694394,111470.0,111460.0,0.0040944]
[1761809169472,0.05674,111460.0,111450.0,0.04491433]
[1761809169666,0.79634788,111460.0,111450.0,0.03413092]
[1761809170468,0.79644199,111460.0,111450.0,0.03413092]
[1761809170867,0.79744199,111460.0,111450.0,0.03413092]
[1761809171671,0.95984593,111460.0,111450.0,0.03413092]
[1761809171875,0.05674,111430.0,111420.0,0.42012841]
[1761809172065,0.21623834,111430.0,111420.0,0.42012841]
[1761809172264,0.0568344,111430.0,111420.0,0.42012841]
[1761809172463,9.44e-05,111430.0,111420.0,0.83521359]
[1761809172770,0.0213744,111430.0,111420.0,0.86677611]
[1761809172967,0.0440844,111430.0,111420.0,0.70737217]
[1761809173169,0.0213744,111430.0,111420.0,0.71037217]
[1761809173475,0.0213744,111430.0,111420.0,0.72279325]
[1761809173675,0.0213744,111430.0,111420.0,0.88219719]
[1761809173877,0.0440844,111430.0,111420.0,0.88219719]
[1761809174176,0.0440844,111430.0,111420.0,0.85063467]
[1761809174672,0.0440844,111430.0,111420.0,0.60148343]
[1761809174877,0.0578144,111430.0,111420.0,0.59495343]
[1761809175077,0.0578144,111430.0,111420.0,0.43554949]
[1761809175277,0.21721834,111430.0,111420.0,0.59495343]
[1761809176777,0.0578144,111430.0,111420.0,0.52529679]
[1761809176982,0.0578144,111430.0,111420.0,0.59495343]
[1761809177477,0.0578144,111430.0,111420.0,0.68470073]
[1761809178370,0.0578144,111430.0,111420.0,0.52529679]
[1761809178569,0.0578144,111430.0,111420.0,0.68470073]
[1761809178775,0.0578144,111430.0,111420.0,0.84410467]
[1761809179778,0.0578144,111430.0,111420.0,0.68470073]
[1761809180675,0.0578144,111430.0,111420.0,0.71626325]
[1761809181280,0.0578144,111430.0,111420.0,0.87566719]
[1761809181481,9.44e-05,111430.0,111420.0,0.86116878]
[1761809181683,0.05761,111460.0,111450.0,0.03562]
[1761809181983,0.05761,111460.0,111450.0,0.19502394]
[1761809182279,0.05859,111470.0,111460.0,0.03562]
[1761809182477,0.05859,111470.0,111460.0,0.19502394]
[1761809182685,0.21799394,111470.0,111460.0,0.19502394]
[1761809182875,0.21799394,111470.0,111460.0,0.03562]
[1761809183271,0.37739788,111470.0,111460.0,0.0122064]
[1761809183477,0.37739788,111470.0,111450.0,0.05929238]
[1761809183478,0.05859,111460.0,111450.0,0.05929238]
[1761809183682,0.75819788,111460.0,111450.0,0.02367238]
[1761809183980,0.76219788,111460.0,111450.0,0.02467238]
[1761809184374,0.05859,111450.0,111440.0,0.05929238]
[1761809184572,0.21799394,111450.0,111440.0,0.05929238]
[1761809185283,0.04486,111440.0,111430.0,0.08507241]
[1761809185582,0.21799394,111440.0,111430.0,0.26228635]
[1761809186583,0.21799394,111440.0,111430.0,0.10288241]
[1761809186783,0.37739788,111440.0,111430.0,0.03569924]
[1761809187185,0.37739788,111440.0,111430.0,0.08507241]
[1761809187493,0.37839788,111440.0,111430.0,0.06726241]
[1761809187786,0.37839788,111440.0,111430.0,0.03569924]
[1761809187989,0.73919788,111440.0,111430.0,0.03569924]
[1761809188291,0.78919788,111440.0,111430.0,0.02367238]
[1761809191185,0.78919788,111440.0,111430.0,0.03524797]
[1761809191778,0.78919788,111440.0,111410.0,0.03156317]
[1761809191779,0.05859,111420.0,111410.0,0.03156317]
[1761809191982,1.11899788,111420.0,111410.0,0.07653317]
[1761809192880,1.11899788,111420.0,111410.0,0.05379317]
[1761809193075,1.11899788,111420.0,111410.0,0.09021821]
[1761809193280,1.13899788,111420.0,111410.0,0.03356317]
[1761809193479,1.13999788,111420.0,111410.0,0.03656317]
[1761809193980,1.29940182,111420.0,111410.0,0.03656317]
[1761809194188,1.13999788,111420.0,111410.0,0.05879317]
[1761809194378,1.09999788,111420.0,111410.0,0.05879317]
[1761809194684,1.09999788,111420.0,111410.0,0.07653317]
[1761809195184,1.09999788,111420.0,111410.0,0.03156317]
[1761809196181,0.78119,111420.0,111410.0,0.07565317]
[1761809196400,0.05959,111420.0,111410.0,0.28894116]
[1761809196687,0.05959,111420.0,111410.0,0.25737799]
[1761809196890,0.04586,111420.0,111410.0,0.61817799]
[1761809197080,0.04586,111420.0,111410.0,0.25737799]
[1761809197276,0.04586,111420.0,111410.0,0.09797405]
[1761809197790,0.001,111420.0,111410.0,0.34729245]
[1761809197988,0.001,111420.0,111410.0,0.34997245]
[1761809198378,0.001,111420.0,111410.0,0.94997245]
[1761809198881,0.001,111420.0,111410.0,0.71077245]
[1761809199088,0.41991,111440.0,111430.0,0.05593]
[1761809199398,0.41991,111440.0,111430.0,0.08758202]
[1761809199988,0.40618,111440.0,111430.0,0.17732132]
[1761809200186,0.38575,111440.0,111430.0,0.17732132]
[1761809201085,0.40818,111440.0,111430.0,0.08758202]
[1761809203092,0.42199,111440.0,111430.0,0.08758202]
[1761809203288,0.06119,111440.0,111430.0,0.08758202]
[1761809204588,0.06119,111440.0,111430.0,0.07574202]
[1761809205092,0.42199,111440.0,111430.0,0.07574202]
[1761809205798,0.76620444,111440.0,111430.0,0.03165202]
[1761809206986,0.42199,111440.0,111430.0,0.07574202]
[1761809207298,0.42199,111440.0,111430.0,0.08948202]
[1761809207795,0.42199,111440.0,111430.0,0.07574202]
[1761809208192,0.06119,111440.0,111430.0,0.07574202]
[1761809214601,0.06119,111440.0,111430.0,0.04409]
[1761809215201,0.06119,111440.0,111430.0,0.07574202]
[1761809215388,0.06119,111440.0,111430.0,0.04409]
[1761809215700,0.39540444,111440.0,111430.0,0.02198]
[1761809215897,0.06119,111440.0,111430.0,0.02198]
[1761809216097,0.42199,111440.0,111430.0,0.02198]
[1761809217205,0.42199,111440.0,111420.0,0.03165202]
[1761809217404,0.41999,111430.0,111420.0,0.07574202]
[1761809219412,0.57955813,111430.0,111420.0,0.07574202]
[1761809219611,0.41999,111440.0,111430.0,0.04409]
[1761809220610,0.57955813,111440.0,111430.0,0.04409]
[1761809221410,0.58155813,111440.0,111430.0,0.04409]
[1761809221604,0.42199,111440.0,111430.0,0.04409]
[1761809222600,0.58155813,111440.0,111430.0,0.04409]
[1761809224397,0.05919,111430.0,111420.0,0.07574202]
[1761809224597,0.57955813,111430.0,111420.0,0.07574202]
[1761809226013,0.57955813,111430.0,111420.0,0.05363202]
[1761809226309,0.57955813,111430.0,111420.0,0.03165202]
[1761809226907,0.59955813,111430.0,111420.0,0.03165202]
[1761809227206,0.05985,111420.0,111410.0,0.03372842]
[1761809227406,0.75978626,111420.0,111410.0,0.03372842]
[1761809228202,0.60021813,111420.0,111410.0,0.03372842]
[1761809228513,0.60021813,111420.0,111410.0,0.0020764]
[1761809229009,0.72021813,111420.0,111410.0,0.0020764]
[1761809229212,0.60021813,111420.0,111410.0,0.0020764]
[1761809232608,0.60021813,111420.0,111410.0,0.0234764]
[1761809232813,0.58021813,111420.0,111410.0,0.0462564]
[1761809235211,0.42065,111420.0,111410.0,0.0462564]
[1761809235402,0.42065,111420.0,111410.0,0.0577664]
[1761809236011,0.42065,111420.0,111410.0,0.0462564]
[1761809236409,0.42065,111420.0,111410.0,0.04625639]
[1761809240616,0.42065,111420.0,111410.0,0.04625638]
[1761809242411,0.58021813,111420.0,111410.0,0.04625638]
[1761809242619,0.58021813,111420.0,111410.0,0.02347638]
[1761809242918,0.58021813,111420.0,111410.0,0.04600638]
[1761809243118,0.42065,111420.0,111410.0,0.04600638]
[1761809243320,0.04619,111420.0,111410.0,0.21708451]
[1761809243513,0.04619,111420.0,111410.0,0.57788451]
[1761809243915,0.04619,111420.0,111410.0,0.58056451]
[1761809244114,0.04619,111420.0,111410.0,0.57788451]
[1761809244613,0.05946,111420.0,111410.0,0.41831638]
[1761809245324,0.05946,111420.0,111410.0,0.4499684]
[1761809245617,0.57982813,111420.0,111410.0,0.04600638]
[1761809245818,0.05946,111420.0,111410.0,0.04600638]
[1761809246118,0.42026,111420.0,111410.0,0.04600638]
[1761809248515,0.05946,111420.0,111410.0,0.04600638]
[1761809248921,0.42026,111420.0,111410.0,0.04600638]
[1761809251225,0.04619,111420.0,111410.0,0.70224183]
[1761809252722,0.04619,111420.0,111410.0,0.69956183]
[1761809253222,0.05943,111420.0,111410.0,0.69956182]
[1761809253720,0.04619,111420.0,111410.0,0.77213682]
[1761809254023,0.04476,111430.0,111420.0,0.05764]
[1761809254216,0.04476,111430.0,111420.0,0.60188841]
[1761809254419,0.04476,111430.0,111420.0,0.72328773]
[1761809254728,0.04404,111440.0,111430.0,0.1474792]
[1761809254922,0.44273905,111450.0,111440.0,0.04478]
[1761809256120,0.05723,111430.0,111420.0,0.02387844]
[1761809256315,0.94839813,111430.0,111420.0,0.02387844]
[1761809257322,0.99033129,111430.0,111420.0,0.02387844]
[1761809263521,0.99033129,111430.0,111410.0,0.06230119]
[1761809263522,0.05723,111420.0,111410.0,0.06230119]
[1761809263831,0.67753129,111420.0,111410.0,0.03064917]
[1761809266434,0.80753129,111420.0,111410.0,0.03064917]
[1761809267525,0.80753129,111420.0,111410.0,0.00677073]
[1761809268128,0.81053129,111420.0,111410.0,0.00777073]
[1761809268636,0.81153129,111420.0,111410.0,0.00777073]
[1761809269329,0.81053129,111420.0,111410.0,0.00777072]
[1761809269529,0.81253129,111420.0,111410.0,0.00777072]
[1761809270038,0.80953129,111420.0,111410.0,0.00677072]
[1761809270237,0.81453129,111420.0,111410.0,0.00777072]
[1761809271640,0.81453129,111420.0,111410.0,0.00777064]
[1761809273140,0.80953129,111420.0,111410.0,0.00677064]
[1761809273340,0.81153129,111420.0,111410.0,0.00777064]